[Event "44th Chess Olympiad Women 2022"]
[Site "Chennai"]
[Date "2022.08.09"]
[Round "11.56"]
[White "Bouzana, Christina"]
[Black "Adhikari, Kritisara"]
[Result "0-1"]
[ECO "A48"]
[WhiteElo "1079"]
[BlackElo "1552"]
[Annotator "NA RC COMBH"]
[PlyCount "116"]
[EventDate "2022.07.29"]
[EventType "team-tourn"]
[EventCountry "IND"]
[SourceTitle "playchess.com"]
[Source "ChessBase"]
[SourceQuality "1"]
[WhiteTeam "Cyprus"]
[BlackTeam "Nepal"]
[WhiteTeamCountry "CYP"]
[BlackTeamCountry "NEP"]
[TimeControl "40/5400+30:1800+30"]

1. d4 {[%emt 0:00:02]} Nf6 {[%emt 0:00:14]} 2. Bf4 {[%emt 0:00:30]} g6 {[%emt 0:00:10]} 3. e3 {[%emt 0:00:29]} Bg7 {[%emt 0:02:25]} 4. Nf3 {[%emt 0:01:47]} d6 {[%emt 0:00:59]} 5. Bd3 {[%emt 0:01:32]} Nbd7 {[%emt 0:01:57]} 6. Nbd2 {[%emt 0:01:07]} c5 {[%emt 0:03:04]} 7. Bg3 {[%emt 0:02:54]} O-O {[%emt 0:05:06]} 8. dxc5 {[%emt 0:09:57]} Nxc5 {[%emt 0:00:22]} 9. Be2 {[%emt 0:00:54]} Qa5 {[%emt 0:07:43]} 10. c3 {[%emt 0:02:52]} Qc7 {[%emt 0:04:43]} 11. O-O {[%emt 0:01:25]} a6 {[%emt 0:02:08]} 12. Nd4 {[%emt 0:03:39]} Re8 {[%emt 0:04:06]} 13. N4b3 {[%emt 0:05:50]} Nce4 {[%emt 0:02:15]} 14. Bh4 {[%emt 0:06:21]} Rb8 {[%emt 0:03:44]} 15. Bf3 {[%emt 0:05:23]} Nxd2 16. Nxd2 Qc5 {[%emt 0:01:58]} 17. Re1 {[%emt 0:06:20]} b5 {[%emt 0:04:54]} 18. Rc1 {[%emt 0:06:16]} Qb6 {[%emt 0:01:53]} 19. c4 {[%emt 0:04:38]} Be6 {[%emt 0:04:28]} 20. cxb5 {[%emt 0:05:10]} axb5 {[%emt 0:01:20]} 21. b3 {[%emt 0:07:23]} Qa5 {[%emt 0:04:26]} 22. a4 {[%emt 0:00:37]} bxa4 {[%emt 0:00:40]} 23. bxa4 {[%emt 0:00:07]} Bd7 {[%emt 0:06:57]} 24. Rc4 {[%emt 0:04:59]} Rb4 {[%emt 0:00:55]} 25. Rxb4 {[%emt 0:02:54]} Qxb4 {[%emt 0:00:08]} 26. Bg3 {[%emt 0:00:52]} Qxa4 {[%emt 0:01:00]} 27. Qxa4 {[%emt 0:00:38]} Bxa4 {[%emt 0:00:11]} 28. Ra1 {[%emt 0:00:30]} Bd7 {[%emt 0:03:39]} 29. h3 {[%emt 0:01:08]} Ne4 {[%emt 0:10:19]} 30. Ra7 {[%emt 0:02:56]} Nxd2 {[%emt 0:01:15]} 31. Rxd7 {[%emt 0:00:07]} Nxf3+ {[%emt 0:00:23]} 32. gxf3 {[%emt 0:00:08]} Bf6 {[%emt 0:00:26]} 33. Kg2 {[%emt 0:00:28]} Rc8 {[%emt 0:00:59]} 34. Bf4 {[%emt 0:01:18]} Kg7 {[%emt 0:00:32]} 35. Bg3 {[%emt 0:00:48]} Rc2 {[%emt 0:01:39]} 36. f4 {[%emt 0:00:45]} Rc4 {[%emt 0:05:49]} 37. Kf3 {[%emt 0:00:18]} Rc3 {[%emt 0:00:22]} 38. Ke4 {[%emt 0:01:51]} h6 {[%emt 0:02:10]} 39. h4 {[%emt 0:00:56]} g5 {[%emt 0:03:12]} 40. hxg5 {[%emt 0:00:42]} hxg5 {[%emt 0:00:10]} 41. fxg5 {[%emt 0:30:06]} Bxg5 {[%emt 0:30:06]} 42. Kf5 {[%emt 0:03:07]} Rc5+ {[%emt 0:00:28]} 43. Ke4 {[%emt 0:00:24]} Kg6 {[%emt 0:06:42]} 44. f4 {[%emt 0:01:38]} f5+ {[%emt 0:02:08]} 45. Kf3 {[%emt 0:01:04]} Bf6 {[%emt 0:00:08]} 46. Be1 {[%emt 0:00:15]} Rb5 {[%emt 0:00:56]} 47. e4 {[%emt 0:02:03]} Rb3+ {[%emt 0:00:24]} 48. Ke2 {[%emt 0:00:25]} fxe4 {[%emt 0:00:10]} 49. Bd2 {[%emt 0:00:41]} Kf5 {[%emt 0:01:11]} 50. Ra7 {[%emt 0:00:41]} d5 {[%emt 0:02:21]} 51. Ra5 {[%emt 0:01:05]} e6 {[%emt 0:01:54]} 52. Bc1 {[%emt 0:01:21]} Rc3 {[%emt 0:00:00]} 53. Bd2 {[%emt 0:00:00]} Rc2 {[%emt 0:00:00]} 54. Ke3 {[%emt 0:00:00]} Bc3 {[%emt 0:00:00]} 55. Bxc3 {[%emt 0:00:00]} Rxc3+ {[%emt 0:00:00]} 56. Ke2 {[%emt 0:00:00]} Kxf4 {[%emt 0:00:00]} 57. Ra2 {[%emt 0:00:00]} d4 {[%emt 0:00:00]} 58. Ke1 {[%emt 0:00:00]} e3 {[%emt 0:00:00]} 0-1

[Event "44th Chess Olympiad Women 2022"]
[Site "Chennai"]
[Date "2022.08.09"]
[Round "11.57"]
[White "Raharimanana, Faratiana"]
[Black "Nepando, Jolly"]
[Result "1-0"]
[ECO "C54"]
[WhiteElo "1707"]
[BlackElo "1389"]
[Annotator "NA RC COMBH"]
[PlyCount "149"]
[EventDate "2022.07.29"]
[EventType "team-tourn"]
[EventCountry "IND"]
[SourceTitle "playchess.com"]
[Source "ChessBase"]
[SourceQuality "1"]
[WhiteTeam "Madagascar"]
[BlackTeam "Namibia"]
[WhiteTeamCountry "MAD"]
[BlackTeamCountry "NAM"]
[TimeControl "40/5400+30:1800+30"]

1. e4 {[%emt 0:00:02]} e5 {[%emt 0:00:19]} 2. Nf3 {[%emt 0:00:08]} Nc6 {[%emt 0:00:35]} 3. Bc4 {[%emt 0:00:07]} Bc5 {[%emt 0:00:10]} 4. d3 {[%emt 0:00:34]} d6 {[%emt 0:00:44]} 5. c3 {[%emt 0:00:14]} Nf6 {[%emt 0:02:34]} 6. Bg5 {[%emt 0:01:15]} O-O {[%emt 0:00:53]} 7. O-O {[%emt 0:00:34]} Na5 {[%emt 0:00:22]} 8. Bb5 {[%emt 0:00:20]} a6 {[%emt 0:01:01]} 9. Ba4 {[%emt 0:00:10]} b5 {[%emt 0:00:31]} 10. Bc2 {[%emt 0:00:16]} Bb6 {[%emt 0:01:33]} 11. b4 {[%emt 0:01:29]} Nb7 {[%emt 0:03:05]} 12. a4 {[%emt 0:04:46]} c6 {[%emt 0:04:06]} 13. Nbd2 {[%emt 0:00:39]} Bg4 {[%emt 0:02:44]} 14. h3 {[%emt 0:00:51]} Bh5 {[%emt 0:00:32]} 15. g4 {[%emt 0:00:26]} Bg6 {[%emt 0:00:52]} 16. d4 {[%emt 0:02:03]} h6 {[%emt 0:05:49]} 17. Bh4 {[%emt 0:02:14]} Qe7 {[%emt 0:05:33]} 18. a5 {[%emt 0:09:44]} Bc7 {[%emt 0:07:08]} 19. dxe5 {[%emt 0:00:55]} dxe5 {[%emt 0:00:53]} 20. Qe2 {[%emt 0:01:25]} Bh7 {[%emt 0:16:48]} 21. Rab1 {[%emt 0:07:53]} c5 {[%emt 0:03:11]} 22. Qe3 {[%emt 0:02:01]} c4 {[%emt 0:01:41]} 23. Kh2 {[%emt 0:00:17]} Nd8 {[%emt 0:02:03]} 24. g5 {[%emt 0:00:47]} hxg5 {[%emt 0:01:14]} 25. Bxg5 {[%emt 0:00:44]} Ne6 {[%emt 0:00:53]} 26. Rg1 {[%emt 0:04:07]} Bg6 {[%emt 0:22:08]} 27. Kh1 {[%emt 0:17:59]} Kh7 {[%emt 0:03:07]} 28. Nh2 {[%emt 0:03:04]} Rh8 {[%emt 0:00:43]} 29. Ng4 {[%emt 0:02:18]} Nxg5 {[%emt 0:03:16]} 30. Qxg5 {[%emt 0:01:00]} Kg8 {[%emt 0:00:53]} 31. Rg3 {[%emt 0:00:30]} Rh5 {[%emt 0:03:50]} 32. Nxf6+ {[%emt 0:07:29]} Qxf6 {[%emt 0:00:11]} 33. Qxf6 {[%emt 0:00:37]} gxf6 {[%emt 0:00:05]} 34. Rbg1 {[%emt 0:02:27]} Kg7 {[%emt 0:01:49]} 35. Nf1 {[%emt 0:00:19]} Rah8 {[%emt 0:00:33]} 36. Kg2 {[%emt 0:00:25]} Kf8 {[%emt 0:01:13]} 37. Ne3 {[%emt 0:01:22]} Rg5 {[%emt 0:01:54]} 38. Rh1 {[%emt 0:01:38]} Rhh5 {[%emt 0:00:50]} 39. h4 {[%emt 0:00:28]} Rxg3+ {[%emt 0:00:18]} 40. fxg3 {[%emt 0:00:13]} Ke7 {[%emt 0:01:10]} 41. g4 {[%emt 0:31:12]} Rh6 {[%emt 0:30:29]} 42. h5 {[%emt 0:02:24]} Bh7 {[%emt 0:00:47]} 43. Kf3 {[%emt 0:00:46]} Ke6 {[%emt 0:00:00]} 44. Rd1 {[%emt 0:00:00]} Bd6 {[%emt 0:00:00]} 45. Nf5 {[%emt 0:00:00]} Bxf5 {[%emt 0:00:00]} 46. exf5+ {[%emt 0:00:00]} Ke7 {[%emt 0:00:00]} 47. Be4 {[%emt 0:00:00]} Rh8 {[%emt 0:00:00]} 48. Rh1 {[%emt 0:00:00]} Rd8 {[%emt 0:00:00]} 49. Rd1 {[%emt 0:00:00]} Rh8 {[%emt 0:00:00]} 50. Bd5 {[%emt 0:00:00]} Bxb4 {[%emt 0:02:03]} 51. cxb4 {[%emt 0:00:00]} Rd8 {[%emt 0:00:20]} 52. Ke4 {[%emt 0:00:00]} Kf8 {[%emt 0:01:36]} 53. Rc1 {[%emt 0:00:00]} Kg7 {[%emt 0:00:18]} 54. Rc3 {[%emt 0:00:00]} Kh6 {[%emt 0:00:41]} 55. Bxf7 {[%emt 0:00:00]} Rd4+ {[%emt 0:00:06]} 56. Kf3 {[%emt 0:00:00]} Kg5 {[%emt 0:01:06]} 57. Kf2 {[%emt 0:00:00]} Rf4+ {[%emt 0:01:12]} 58. Kg2 {[%emt 0:00:00]} Rxg4+ {[%emt 0:00:33]} 59. Rg3 {[%emt 0:00:03]} Rxg3+ {[%emt 0:00:07]} 60. Kxg3 {[%emt 0:00:04]} c3 {[%emt 0:00:39]} 61. Bb3 {[%emt 0:01:20]} Kxh5 {[%emt 0:00:04]} 62. Kf3 {[%emt 0:00:16]} Kg5 {[%emt 0:00:12]} 63. Ke4 {[%emt 0:00:09]} Kg4 {[%emt 0:00:36]} 64. Bc2 {[%emt 0:00:39]} Kg5 {[%emt 0:00:19]} 65. Kd3 {[%emt 0:08:37]} Kxf5 {[%emt 0:00:07]} 66. Kxc3+ {[%emt 0:00:04]} Kf4 {[%emt 0:00:28]} 67. Bd3 {[%emt 0:00:09]} Ke3 {[%emt 0:00:23]} 68. Bxb5 {[%emt 0:00:13]} axb5 {[%emt 0:03:12]} 69. a6 {[%emt 0:00:07]} f5 {[%emt 0:00:05]} 70. a7 {[%emt 0:00:06]} f4 {[%emt 0:00:10]} 71. a8=Q {[%emt 0:01:45]} f3 {[%emt 0:00:00]} 72. Qd5 {[%emt 0:01:24]} f2 {[%emt 0:01:55]} 73. Qxe5+ {[%emt 0:00:12]} Kf3 {[%emt 0:00:09]} 74. Qxb5 {[%emt 0:00:16]} Kg2 {[%emt 0:00:10]} 75. Qe2 {[%emt 0:00:12]} 1-0

[Event "44th Chess Olympiad Women 2022"]
[Site "Chennai"]
[Date "2022.08.09"]
[Round "11.57"]
[White "Rakotoniaina Tiana Johanna"]
[Black "Beukes Jamie-Nicole"]
[Result "1-0"]
[ECO "B47"]
[WhiteElo "1529"]
[BlackElo "1231"]
[Annotator "NA RC COMBH"]
[PlyCount "61"]
[EventDate "2022.07.29"]
[EventType "team-tourn"]
[EventCountry "IND"]
[SourceTitle "playchess.com"]
[Source "ChessBase"]
[SourceQuality "1"]
[WhiteTeam "Madagascar"]
[BlackTeam "Namibia"]
[WhiteTeamCountry "MAD"]
[BlackTeamCountry "NAM"]
[TimeControl "40/5400+30:1800+30"]

1. e4 {[%emt 0:00:05]} c5 {[%emt 0:00:13]} 2. Nf3 {[%emt 0:00:07]} e6 {[%emt 0:00:13]} 3. d4 {[%emt 0:00:26]} cxd4 {[%emt 0:00:10]} 4. Nxd4 {[%emt 0:00:10]} Nc6 {[%emt 0:00:12]} 5. Nc3 {[%emt 0:00:29]} Qc7 {[%emt 0:00:28]} 6. Ndb5 {[%emt 0:01:24]} Qb8 {[%emt 0:00:38]} 7. Be2 {[%emt 0:03:15]} a6 {[%emt 0:00:35]} 8. Nd4 {[%emt 0:00:25]} Nf6 {[%emt 0:01:16]} 9. Bg5 {[%emt 0:01:05]} Nxe4 {[%emt 0:06:59]} 10. Nxc6 {[%emt 0:19:37]} Nxc3 {[%emt 0:01:27]} 11. bxc3 {[%emt 0:00:46]} bxc6 {[%emt 0:00:44]} 12. Rb1 {[%emt 0:00:57]} Qe5 {[%emt 0:01:31]} 13. Qd2 {[%emt 0:00:28]} Bd6 {[%emt 0:09:10]} 14. Be3 {[%emt 0:16:34]} O-O {[%emt 0:03:54]} 15. f4 {[%emt 0:14:29]} Qd5 {[%emt 0:02:24]} 16. Qxd5 {[%emt 0:01:53]} cxd5 {[%emt 0:01:30]} 17. Kf2 {[%emt 0:00:53]} Rb8 {[%emt 0:03:29]} 18. Rxb8 {[%emt 0:02:23]} Bxb8 {[%emt 0:00:09]} 19. Rb1 {[%emt 0:00:06]} Bc7 {[%emt 0:01:19]} 20. g4 {[%emt 0:00:50]} g5 {[%emt 0:07:30]} 21. fxg5 {[%emt 0:05:53]} Bxh2 {[%emt 0:02:47]} 22. Rh1 {[%emt 0:03:37]} Be5 {[%emt 0:01:40]} 23. Bd3 {[%emt 0:03:14]} Bxc3 {[%emt 0:05:46]} 24. Bc5 {[%emt 0:04:20]} Re8 {[%emt 0:01:58]} 25. Bd6 {[%emt 0:08:33]} Bd2 {[%emt 0:08:04]} 26. Bxh7+ {[%emt 0:00:49]} Kg7 {[%emt 0:02:35]} 27. Be5+ {[%emt 0:00:17]} Kf8 {[%emt 0:01:13]} 28. Bf6 {[%emt 0:00:12]} Bxg5 {[%emt 0:06:30]} 29. Bxg5 {[%emt 0:00:10]} Kg7 {[%emt 0:00:49]} 30. Bd3 {[%emt 0:01:38]} Rg8 {[%emt 0:05:15]} 31. Be7 {[%emt 0:04:38]} 1-0

[Event "44th Chess Olympiad Women 2022"]
[Site "Chennai"]
[Date "2022.08.09"]
[Round "11.57"]
[White "Mentile, Lishen"]
[Black "Razafindrabe, Bakoly"]
[Result "1-0"]
[ECO "C58"]
[WhiteElo "1486"]
[BlackElo "1238"]
[Annotator "NA RC COMBH"]
[PlyCount "101"]
[EventDate "2022.07.29"]
[EventType "team-tourn"]
[EventCountry "IND"]
[SourceTitle "playchess.com"]
[Source "ChessBase"]
[SourceQuality "1"]
[WhiteTeam "Namibia"]
[BlackTeam "Madagascar"]
[WhiteTeamCountry "NAM"]
[BlackTeamCountry "MAD"]
[TimeControl "40/5400+30:1800+30"]

1. e4 {[%emt 0:00:06]} e5 {[%emt 0:00:11]} 2. Nf3 {[%emt 0:00:11]} Nc6 {[%emt 0:00:14]} 3. Bc4 {[%emt 0:00:13]} Nf6 {[%emt 0:01:25]} 4. Ng5 {[%emt 0:01:15]} d5 {[%emt 0:00:23]} 5. exd5 {[%emt 0:03:37]} Na5 {[%emt 0:00:18]} 6. Bb5+ {[%emt 0:04:12]} c6 {[%emt 0:00:17]} 7. dxc6 {[%emt 0:01:23]} bxc6 {[%emt 0:00:10]} 8. Ba4 {[%emt 0:02:13]} h6 {[%emt 0:00:10]} 9. Nh3 {[%emt 0:15:56]} Bxh3 {[%emt 0:11:00]} 10. gxh3 {[%emt 0:00:04]} Qc8 {[%emt 0:00:25]} 11. Qf3 {[%emt 0:02:48]} e4 {[%emt 0:00:58]} 12. Qg3 {[%emt 0:00:56]} Qe6 {[%emt 0:03:43]} 13. Nc3 {[%emt 0:06:19]} g6 {[%emt 0:03:43]} 14. Qc7 {[%emt 0:09:30]} Bb4 {[%emt 0:01:09]} 15. a3 {[%emt 0:06:40]} Bxc3 {[%emt 0:01:39]} 16. dxc3 {[%emt 0:05:30]} Qd5 {[%emt 0:00:54]} 17. c4 {[%emt 0:00:40]} Qe6 {[%emt 0:02:39]} 18. Qxa5 {[%emt 0:00:30]} O-O {[%emt 0:00:47]} 19. Qc3 {[%emt 0:00:53]} Kg7 {[%emt 0:00:43]} 20. Bb3 {[%emt 0:01:14]} c5 {[%emt 0:00:14]} 21. Bd2 {[%emt 0:01:38]} a5 {[%emt 0:00:26]} 22. Ba4 {[%emt 0:03:13]} Kh7 {[%emt 0:00:33]} 23. O-O-O {[%emt 0:00:46]} Nh5 {[%emt 0:01:35]} 24. Qe3 {[%emt 0:01:18]} g5 {[%emt 0:00:40]} 25. Qxc5 {[%emt 0:01:31]} Rfc8 {[%emt 0:00:19]} 26. Qe3 {[%emt 0:02:28]} Qxc4 {[%emt 0:01:01]} 27. Bb3 {[%emt 0:00:18]} Qc6 {[%emt 0:00:43]} 28. Bc3 {[%emt 0:00:51]} Nf4 {[%emt 0:04:23]} 29. Bd5 {[%emt 0:03:10]} Nxd5 {[%emt 0:00:58]} 30. Qxe4+ {[%emt 0:00:07]} Qg6 {[%emt 0:01:30]} 31. Qxg6+ {[%emt 0:00:55]} Kxg6 {[%emt 0:00:09]} 32. Rxd5 {[%emt 0:00:03]} a4 {[%emt 0:00:20]} 33. Rg1 {[%emt 0:03:02]} Rc6 {[%emt 0:01:20]} 34. h4 {[%emt 0:01:07]} f6 {[%emt 0:00:32]} 35. f4 {[%emt 0:00:19]} Kh5 {[%emt 0:01:11]} 36. hxg5 {[%emt 0:00:38]} fxg5 {[%emt 0:00:48]} 37. fxg5 {[%emt 0:00:18]} Rg6 {[%emt 0:00:40]} 38. gxh6+ {[%emt 0:02:40]} Kxh6 {[%emt 0:01:08]} 39. Rxg6+ {[%emt 0:00:23]} Kxg6 {[%emt 0:00:17]} 40. h4 {[%emt 0:01:15]} Rf8 {[%emt 0:00:31]} 41. Rg5+ {[%emt 0:32:24]} Kh7 {[%emt 0:30:55]} 42. Rg1 {[%emt 0:02:10]} Rf3 {[%emt 0:00:35]} 43. Ba5 {[%emt 0:00:53]} Kh6 {[%emt 0:00:44]} 44. Bd8 {[%emt 0:00:21]} Rh3 {[%emt 0:01:38]} 45. Bg5+ {[%emt 0:00:07]} Kg6 {[%emt 0:01:07]} 46. Rg4 {[%emt 0:00:43]} Rh1+ {[%emt 0:01:13]} 47. Kd2 {[%emt 0:00:04]} Rh2+ {[%emt 0:00:37]} 48. Kc3 {[%emt 0:00:08]} Rh3+ {[%emt 0:00:29]} 49. Kb4 {[%emt 0:00:07]} Rh2 {[%emt 0:00:31]} 50. Bf4+ {[%emt 0:00:54]} Kf5 {[%emt 0:00:37]} 51. Bxh2 {[%emt 0:00:29]} 1-0

[Event "44th Chess Olympiad Women 2022"]
[Site "Chennai"]
[Date "2022.08.09"]
[Round "11.57"]
[White "Van Wyk, Keisha C"]
[Black "Razafindrabiaza, Christine"]
[Result "1-0"]
[ECO "C41"]
[WhiteElo "1237"]
[BlackElo "1635"]
[Annotator "NA RC COMBH"]
[PlyCount "59"]
[EventDate "2022.07.29"]
[EventType "team-tourn"]
[EventCountry "IND"]
[SourceTitle "playchess.com"]
[Source "ChessBase"]
[SourceQuality "1"]
[WhiteTeam "Namibia"]
[BlackTeam "Madagascar"]
[WhiteTeamCountry "NAM"]
[BlackTeamCountry "MAD"]
[TimeControl "40/5400+30:1800+30"]

1. e4 {[%emt 0:00:10]} e5 {[%emt 0:00:15]} 2. Nf3 {[%emt 0:00:57]} d6 {[%emt 0:00:32]} 3. Be2 {[%emt 0:02:13]} Nf6 {[%emt 0:00:26]} 4. Nc3 {[%emt 0:00:34]} Be7 {[%emt 0:00:25]} 5. d4 {[%emt 0:00:59]} exd4 {[%emt 0:00:22]} 6. Nxd4 {[%emt 0:00:43]} O-O {[%emt 0:00:14]} 7. Be3 {[%emt 0:01:39]} a6 {[%emt 0:00:43]} 8. h4 {[%emt 0:01:53]} c5 {[%emt 0:00:43]} 9. Nf5 {[%emt 0:03:48]} Bxf5 {[%emt 0:00:49]} 10. exf5 {[%emt 0:00:44]} Nc6 {[%emt 0:00:11]} 11. g4 {[%emt 0:03:07]} Nd7 {[%emt 0:03:16]} 12. g5 {[%emt 0:02:25]} f6 {[%emt 0:01:46]} 13. g6 {[%emt 0:03:01]} h6 {[%emt 0:00:56]} 14. Qd2 {[%emt 0:00:32]} Nb6 {[%emt 0:01:18]} 15. Bxh6 {[%emt 0:02:02]} Nd4 {[%emt 0:00:25]} 16. O-O-O {[%emt 0:07:37]} Nxf5 {[%emt 0:02:09]} 17. Bf4 {[%emt 0:01:14]} Nd4 {[%emt 0:00:45]} 18. h5 {[%emt 0:01:19]} Qe8 {[%emt 0:02:04]} 19. Bd3 {[%emt 0:01:13]} f5 {[%emt 0:01:15]} 20. Qe3 {[%emt 0:01:55]} Qd7 {[%emt 0:02:38]} 21. h6 {[%emt 0:01:17]} Bf6 {[%emt 0:00:29]} 22. hxg7 {[%emt 0:01:07]} Bxg7 {[%emt 0:01:43]} 23. Qh3 {[%emt 0:00:57]} Bf6 {[%emt 0:00:43]} 24. Bg5 {[%emt 0:01:38]} Bxg5+ {[%emt 0:00:20]} 25. Kb1 {[%emt 0:00:59]} Bf6 {[%emt 0:00:13]} 26. Rdg1 {[%emt 0:02:42]} Qg7 {[%emt 0:03:40]} 27. Qg2 {[%emt 0:02:17]} Qc7 {[%emt 0:03:48]} 28. Rh7 {[%emt 0:00:59]} Qc6 {[%emt 0:00:26]} 29. Qh3 {[%emt 0:02:33]} Qf3 {[%emt 0:03:52]} 30. Rh8+ {[%emt 0:00:41]} 1-0

[Event "44th Chess Olympiad Women 2022"]
[Site "Chennai"]
[Date "2022.08.09"]
[Round "11.58"]
[White "Leboela, Maboloko"]
[Black "Kaslan, Victoria"]
[Result "0-1"]
[ECO "E61"]
[WhiteElo "1253"]
[BlackElo "1477"]
[Annotator "NA RC COMBH"]
[PlyCount "50"]
[EventDate "2022.07.29"]
[EventType "team-tourn"]
[EventCountry "IND"]
[SourceTitle "playchess.com"]
[Source "ChessBase"]
[SourceQuality "1"]
[WhiteTeam "Lesotho"]
[BlackTeam "Surinam"]
[WhiteTeamCountry "LES"]
[BlackTeamCountry "SUR"]
[TimeControl "40/5400+30:1800+30"]

1. d4 {[%emt 0:00:22]} Nf6 {[%emt 0:00:34]} 2. c4 {[%emt 0:00:02]} g6 {[%emt 0:00:17]} 3. g3 {[%emt 0:00:02]} Bg7 {[%emt 0:00:30]} 4. Bg2 {[%emt 0:00:02]} d6 {[%emt 0:00:43]} 5. Nc3 {[%emt 0:00:12]} O-O {[%emt 0:00:45]} 6. Bd2 {[%emt 0:00:19]} Nbd7 {[%emt 0:01:09]} 7. Qc1 {[%emt 0:00:09]} e5 {[%emt 0:02:10]} 8. d5 {[%emt 0:00:42]} Ne8 {[%emt 0:04:22]} 9. Bh6 {[%emt 0:00:03]} f5 {[%emt 0:00:41]} 10. e4 {[%emt 0:00:33]} Nc5 {[%emt 0:00:43]} 11. exf5 {[%emt 0:00:18]} Nd3+ {[%emt 0:00:23]} 12. Kd1 {[%emt 0:00:22]} Nxc1 {[%emt 0:00:13]} 13. Bxg7 {[%emt 0:00:03]} Nxg7 {[%emt 0:00:23]} 14. Rxc1 {[%emt 0:00:11]} Bxf5 {[%emt 0:00:14]} 15. f3 {[%emt 0:00:54]} Qf6 {[%emt 0:01:53]} 16. g4 {[%emt 0:00:35]} Bd7 {[%emt 0:04:12]} 17. Ne4 {[%emt 0:00:03]} Qh4 {[%emt 0:01:30]} 18. Ne2 {[%emt 0:00:19]} Rf7 {[%emt 0:02:32]} 19. Rc3 {[%emt 0:01:06]} Ne8 {[%emt 0:01:22]} 20. N2g3 {[%emt 0:00:38]} Rd8 {[%emt 0:02:01]} 21. c5 {[%emt 0:01:07]} dxc5 {[%emt 0:05:00]} 22. Rxc5 {[%emt 0:00:52]} b6 {[%emt 0:00:23]} 23. Rc3 {[%emt 0:00:47]} Be6 {[%emt 0:00:15]} 24. d6 {[%emt 0:00:42]} Nxd6 {[%emt 0:00:46]} 25. Rd3 {[%emt 0:00:26]} Nxe4 {[%emt 0:00:16]} 0-1

[Event "44th Chess Olympiad Women 2022"]
[Site "Chennai"]
[Date "2022.08.09"]
[Round "11.59"]
[White "Sisior, Destiny"]
[Black "Al Balushi, Mariya"]
[Result "1/2-1/2"]
[ECO "C50"]
[WhiteElo "1298"]
[BlackElo "1660"]
[Annotator "NA RC COMBH"]
[PlyCount "77"]
[EventDate "2022.07.29"]
[EventType "team-tourn"]
[EventCountry "IND"]
[SourceTitle "playchess.com"]
[Source "ChessBase"]
[SourceQuality "1"]
[WhiteTeam "PLW"]
[BlackTeam "OMA"]
[TimeControl "40/5400+30:1800+30"]

1. e4 {[%emt 0:00:02]} e5 {[%emt 0:00:06]} 2. Nf3 {[%emt 0:00:14]} Nc6 {[%emt 0:00:05]} 3. Bc4 {[%emt 0:00:07]} Nf6 {[%emt 0:00:08]} 4. Nc3 {[%emt 0:00:12]} Bc5 {[%emt 0:00:22]} 5. h3 {[%emt 0:00:21]} d6 {[%emt 0:00:08]} 6. d3 {[%emt 0:00:38]} O-O {[%emt 0:00:17]} 7. Bg5 {[%emt 0:00:39]} h6 {[%emt 0:00:07]} 8. Bxf6 {[%emt 0:00:31]} Qxf6 {[%emt 0:00:10]} 9. Nd5 {[%emt 0:00:32]} Qd8 {[%emt 0:00:59]} 10. c3 {[%emt 0:00:46]} Na5 {[%emt 0:01:53]} 11. b4 {[%emt 0:00:44]} Nxc4 {[%emt 0:00:39]} 12. dxc4 {[%emt 0:00:29]} c6 {[%emt 0:00:54]} 13. bxc5 {[%emt 0:00:27]} cxd5 {[%emt 0:00:08]} 14. cxd5 {[%emt 0:00:12]} Qc7 {[%emt 0:01:27]} 15. O-O {[%emt 0:00:35]} Qxc5 {[%emt 0:00:24]} 16. Qd3 {[%emt 0:00:05]} Bd7 {[%emt 0:00:48]} 17. c4 {[%emt 0:01:08]} b5 {[%emt 0:00:27]} 18. Rfc1 {[%emt 0:00:15]} bxc4 {[%emt 0:00:17]} 19. Qxc4 {[%emt 0:00:54]} Qxc4 {[%emt 0:01:59]} 20. Rxc4 {[%emt 0:00:23]} Bb5 {[%emt 0:00:11]} 21. Rc3 {[%emt 0:00:34]} f5 {[%emt 0:02:20]} 22. Nd2 {[%emt 0:01:38]} f4 {[%emt 0:02:49]} 23. Nf3 {[%emt 0:03:13]} g5 {[%emt 0:03:45]} 24. a4 {[%emt 0:00:29]} Bd7 {[%emt 0:03:37]} 25. Rc7 {[%emt 0:01:18]} Be8 {[%emt 0:07:00]} 26. Nd2 {[%emt 0:04:04]} Rf7 {[%emt 0:02:36]} 27. Rxf7 {[%emt 0:00:40]} Kxf7 {[%emt 0:00:03]} 28. Rc1 {[%emt 0:00:46]} Rd8 {[%emt 0:09:18]} 29. Rc7+ {[%emt 0:01:33]} Rd7 {[%emt 0:00:10]} 30. Rxd7+ {[%emt 0:00:08]} Bxd7 {[%emt 0:00:10]} 31. a5 {[%emt 0:01:38]} a6 {[%emt 0:00:38]} 32. Nc4 {[%emt 0:00:51]} Ke7 {[%emt 0:00:14]} 33. f3 {[%emt 0:03:40]} h5 {[%emt 0:01:55]} 34. Kf2 {[%emt 0:04:17]} g4 {[%emt 0:09:53]} 35. h4 {[%emt 0:00:26]} gxf3 {[%emt 0:02:16]} 36. gxf3 {[%emt 0:00:22]} Bb5 {[%emt 0:01:10]} 37. Nb6 {[%emt 0:00:34]} Kd8 {[%emt 0:00:15]} 38. Ke1 {[%emt 0:00:26]} Kc7 {[%emt 0:00:24]} 39. Kf2 {[%emt 0:00:08]} 1/2-1/2